Workbook

Sheet OpéMatricielles
A1: UTILISATION DES FORMULES MATRICIELLES DANS EXCEL
A2: conventions des couleurs | C2: donnée | D2: formule non matricielle | G2: formule matricielle | I2: © Monteil 2001,2002
A4: FORMULES DE BASE
A5: Renvoi d'une plage : différentes manières d'opérer
A6: plage-source | B6: Art A | C6: Art B1 | D6: Art B2
A8: renvoi classique | B8: =B6 -> Art A | C8: =C6 -> Art B1 | D8: =D6 -> Art B2 | E8: formule sur 1 cellule, puis poignée de recopie
E9: (on recopie TOUT : formule + format)
A11: idem + Ctrl-Entrée | B11: =B6 -> Art A | C11: =C6 -> Art B1 | D11: =D6 -> Art B2 | E11: formule sur 1 cellule, recopiée dans la présélection
E12: (seule est recopiée la formule, pas le format)
A14: renvoi matriciel | B14: =B6:D6 -> Art A | C14: Art B1 | D14: Art B2 | E14: formule unique sur l'ensemble de la présélection
A15: (Maj-Ctrl-Entrée)
A17: Rappel : raccourcis-clavier de déplacement rapide dans une plage ou une feuille
A18: Ctrl-Flèche | B18: si on n'est pas en bout de plage : | F18: va en bout de la plage courante
B19: si on est en bout de plage : | F19: va sur la prochaine plage
B20: si on est hors d'une plage : | F20: va sur la prochaine plage
A21: Ctrl-Début, Ctrl-Fin | B21: va au début ou à la fin de la feuille de calcul
A22: Si la touche MAJ est utilisée en plus, elle étend la sélection à partir de la position courante
A24: Opérateurs et fonctions classiques utilisés matriciellement : parallélisme
A25: prix HT | B25: 1 | C25: 10 | D25: 100
A26: quantités | B26: 15 | C26: 5 | D26: 3
A27: TOTAL HT | B27: =PrixHT*Quantites -> 15 | C27: 50 | D27: 300 | E27: produit de 2 plages cellule par cellule
A28: TOTAL TTC | B28: =TotauxHT*1.196 -> 17.94 | C28: 59.8 | D28: 358.8 | E28: produit d'une plage par une constante
A29: pour modifier : | B29: le faire sur n'importe quelle cellule de la plage (puis Maj-Ctrl-Entrée)
A31: Arrondi dizaine sup. | B31: =CEILING(TotauxTTC,10) -> 20 | C31: 60 | D31: 360 | E31: application d'une fonction sur toute une plage
A32: Total HT > 200 | B32: =TotauxHT>200 -> FALSE | C32: FALSE | D32: TRUE | E32: condition
A33: Total TTC : -10% … | B33: =IF(TotauxHT>200,TotauxTTC*90%,TotauxTTC) -> 17.94 | C33: 59.8 | D33: 322.92 | E33: application de la fonction SI
A34: … si Total HT > 200
A36: 3 repères | B36: A | C36: B | D36: C
A37: 2 intervalles | B37: =B36 & "-" & C36 -> A-B | C37: =C36 & "-" & D36 -> B-C | D37: formule non matricielle sur une cellule, puis recopie
B38: =B36:C36 & "-" & C36:D36 -> A-B | C38: B-C | D38: formule matricielle unique sur l'ensemble de la plage
A40: Fonctions classiques opérant sur des plages (ex. : SOMME)
A41: Somme standard : non matricielle car résultat sur une seule cellule | G41: =SUM(TotauxTTC) -> 436.54
A43: Somme sur une plage resultant d'un calcul matriciel | G43: =SUM(PrixHT*Quantites*1.196) -> 436.54
B44: une formule standard devient matricielle si un résultat intermédiaire l'est
A46: Somme conditionnelle sur les articles B (nom débutant par "Art B") | G46: =SUM(IF(LEFT(Articles,5)="Art B",TotauxTTC)) -> 418.6
B47: SOMME avec fonction SI utilisée matriciellement
A49: Même chose avec une seconde condition (Total HT < 200) | G49: =SUM(IF(LEFT(Articles,5)="Art B",IF(TotauxHT<200,TotauxTTC))) -> 59.8
B50: SOMME avec 2 fonctions SI imbriquées et utilisées matriciellement
A52: Constantes matricielles
B53: ={1,2,3;4,5,6}*100000 -> 100000 | C53: 200000 | D53: 300000 | F53: NOTA | G53: en version anglaise d'Excel,
B54: 400000 | C54: 500000 | D54: 600000 | G54: utiliser {1,2,3;4,5,6} ou {1\2\3;4\5\6}
G55: en version française d'Excel,
G56: utiliser {1.2.3;4.5.6}
A57: Exemple : équation du second degré a.x2 + b.x + c = 0
A58: Solutions : si Delta (= b2-4.a.c) est positif, on a deux racines [-b +- Racine(Delta)]/(2.a)
B59: a | C59: b | D59: c | F59: Delta | H59: x1 | I59: x2
A60: équation x2 = x+1 | B60: 1 | C60: -1 | D60: -1 | F60: =coef_b^2-4*coef_a*coef_c -> 5 | H60: =IF(Delta>=0,(-coef_b+{-1,1}*SQRT(Delta))/(2*coef_a),NA()) -> -0.6180339887 | I60: 1.618033989
H61: carré des racines
H62: =H60:I60^2 -> 0.3819660113 | I62: 2.618033989
A63: FONCTIONS PUREMENT MATRICIELLES
A64: Fonction DECALER : extraction d'une ligne, colonne ou sous-tableau
B65: soit un tableau T | C65: 1 | D65: 2 | E65: 3 | G65: =OFFSET(T,,j-1,,1) -> 1
A66: nb lignes | B66: =ROWS(T) -> 4 | C66: 4 | D66: 5 | E66: 6 | G66: 4
A67: nb colonnes | B67: =COLUMNS(T) -> 3 | C67: 7 | D67: 8 | E67: 9 | G67: 7
C68: 10 | D68: 11 | E68: 12 | G68: 10
G69: j-ème colonne
A70: i-ème ligne | B70: 1 | C70: =OFFSET(T,i-1,,1) -> 1 | D70: 2 | E70: 3 | G70: 1
B72: sous-tableau 2 x 2 | C72: =OFFSET(T,i-1,j-1,2,2) -> 1 | D72: 2
C73: 4 | D73: 5
A75: Fonction TRANSPOSE : transposée d'un vecteur ou d'une matrice
A76: sur un vecteur V | B76: 1 | C76: 2 | D76: 3 | E76: V' | F76: =TRANSPOSE(V) -> 1
F77: 2
F78: 3
A80: sur une matrice M | B80: 1 | C80: 2 | D80: 3 | E80: M' | F80: =TRANSPOSE(M) -> 1 | G80: 4
B81: 4 | C81: 5 | D81: 6 | F81: 2 | G81: 5
F82: 3 | G82: 6
A84: Fonction TABLE (menu "Données / Table…")
B85: X | C85: Log(X) | E85: Autre méthode
B86: 10 | C86: =LOG(B86) -> 1 | E86: sans TABLE
B87: 1 | C87: 0 | E87: =LOG(B87:B90) -> 0
B88: 2 | C88: 0.3010299957 | E88: 0.3010299957
B89: 4 | C89: 0.6020599913 | E89: 0.6020599913
B90: 8 | C90: 0.903089987 | E90: 0.903089987
A92: Fonction FREQUENCE : fréquence d'occurrence de valeurs dans des classes
B93: Valeurs | C93: Bornes | D93: Fréquences | F93: Classes (opérateur &)
B94: 1 | C94: 10 | D94: =FREQUENCY(Valeurs,Bornes) -> 4 | F94: =C94 & " et moins" -> 10 et moins
B95: 2 | C95: 20 | D95: 1 | F95: ="de " & C94 & " exclu à " & C95 & " inclus" -> de 10 exclu à 20 inclus
B96: 4 | C96: 30 | D96: 0 | F96: ="de " & C95 & " exclu à " & C96 & " inclus" -> de 20 exclu à 30 inclus
B97: 8 | D97: 2 | F97: ="plus de " & C96 -> plus de 30
B98: 16 | D98: Attention : 1 classe de plus que de bornes !
B99: 32
B100: 64 | D100: La plage résultante des fréquences DOIT être en colonne !
A102: Si on veut les fréquences directement sur une ligne horizontale :
B103: =TRANSPOSE(FREQUENCY(Valeurs,Bornes)) -> 4 | C103: 1 | D103: 0 | E103: 2
A106: Fonction DROITEREG : régression linéaire simple
A107: mesures :
A108: X observés | B108: 1 | C108: 2 | D108: 3 | E108: 4 | F108: 5
A109: Y observés | B109: 11.1 | C109: 12 | D109: 12.9 | E109: 14.5 | F109: 14.5
A110: calcul de a et b sans fonction matricielle : usage du solveur
B111: but : minimiser la somme des carrés des résidus
B112: a | C112: b
A113: Y = a.X + b | B113: 1 | C113: 10
A114: Y estimés | B114: =a*Xobs+b -> 11 | C114: 12 | D114: 13 | E114: 14 | F114: 15
A115: résidus Yestim-Yobs | B115: =Yestim-Yobs -> -0.1 | C115: 0 | D115: 0.1 | E115: -0.5 | F115: 0.5
E116: somme carrés | F116: =SUM(Residus^2) -> 0.52
A117: calcul direct : fonction matricielle DROITEREG
B118: =LINEST(Yobs,Xobs) -> 0.93 | C118: 10.21 | E118: somme carrés | F118: =SUM((B118*Xobs+C118-Yobs)^2) -> 0.471
A119: Fonction DROITEREG : régression linéaire multiple
A120: mesures :
A121: X1 observés | B121: =Xobs -> 1 | C121: 2 | D121: 3 | E121: 4 | F121: 5 | G121: (on récupère les X précédents)
A122: X2 observés | B122: 0.2 | C122: 0 | D122: -0.2 | E122: 1 | F122: 0
A123: Y observés | B123: =Yobs -> 11.1 | C123: 12 | D123: 12.9 | E123: 14.5 | F123: 14.5 | G123: (on récupère les Y précédents)
A124: calcul sans fonction matricielle : usage du solveur pour minimiser la somme des carrés des résidus
B125: a2 | C125: a1 | D125: a0 (=b)
A126: Y2=a2.X2+a1.X1+a0 | B126: 1 | C126: 1 | D126: 10
A127: Y2 estimés | B127: =a_2*X2obs+a_1*X1obs+a_0 -> 11.2 | C127: 12 | D127: 12.8 | E127: 15 | F127: 15
A128: résidus Yestim2-Yobs | B128: =Y2estim-Yobs -> 0.1 | C128: 0 | D128: -0.1 | E128: 0.5 | F128: 0.5
E129: somme des carrés | F129: =SUM(Residus2^2) -> 0.52
A130: calcul direct : fonction matricielle DROITEREG
B131: =LINEST(Yobs,X1etX2obs) -> 0.6895734597 | C131: 0.8886255924 | D131: 10.19620853 | F131: =SUM((B131*X2obs+C131*Xobs+D131-Yobs)^2) -> 0.06966824645
A133: OPERATIONS DE CALCUL MATRICIEL
A134: Produit Scalaire
A135: Prix au Supermarché (ticket de caisse) | D135: Article | E135: Qté | F135: PU | G135: Total
D136: Vin | E136: 1 | F136: 100 | G136: =E136*F136 -> 100 | H136: produit 1
D137: Fromage | E137: 2 | F137: 10 | G137: =E137*F137 -> 20 | H137: produit 2
D138: Pain | E138: 5 | F138: 1 | G138: =E138*F138 -> 5 | H138: produit 3
A139: Somme des Produits | G139: =SUM(G136:G138) -> 125 | H139: Somme
A141: Calcul direct 1 | B141: fonction SOMMEPROD(V1;V2) | G141: =SUMPRODUCT(E136:E138,F136:F138) -> 125
B142: ou formule matricielle SOMME(V1*V2) | G142: =SUM(E136:E138*F136:F138) -> 125
B143: contrainte : plages toutes 2 verticales (ou toutes 2 horizontales)
A145: Calcul direct 2 | B145: fonction PRODUITMAT(V1;V2)
B146: contrainte : 1ère plage horizontale, 2ème plage verticale (et non l'inverse)
E147: PU
B148: Vin | E148: 100 | H148: Produit Scalaire
C149: From | E149: 10 | H149: =
D150: Pain | E150: 1 | H150: Somme Pondérée
A151: Quantités | B151: 1 | C151: 2 | D151: 5 | E151: =MMULT(B151:D151,E148:E150) -> 125 | F151: Prix total
A153: Produit Matriciel (généralisation du produit scalaire) : fonction PRODUITMAT (matricielle)
A154: Plusieurs clients (1 client/ligne) et plusieurs dates (1 date/colonne)
E155: Date 1 | F155: Date 2
B156: Vin | E156: 100 | F156: 100
C157: From | E157: 10 | F157: 15
D158: Pain | E158: 1 | F158: 2
A159: Client 1 | B159: 1 | C159: 2 | D159: 5 | E159: =MMULT(Clients,Dates) -> 125 | F159: 140 | G159: Prix totaux
A160: Client 2 | B160: 0 | C160: 3 | D160: 2 | E160: 32 | F160: 49
A161: Client 3 | B161: 1 | C161: 0 | D161: 4 | E161: 104 | F161: 108
A162: Client 4 | B162: 2 | C162: 2 | D162: 1 | E162: 221 | F162: 232
B163: => Quantités = Pondération
A165: dimension des plages matricielles : Clients(m,n) x Dates(n,p) => PrixTotaux(m,p)
A166: contrainte : nombre de colonnes (n) de la matrice 1 = nombre de lignes de la matrice 2
A168: Notes d'élèves dans plusieurs matières coefficientées
E169: Coefs | F169: => Coefficients = Pondération
B170: Math | E170: 3 | G170: Total Coefs
C171: Sport | E171: 1 | G171: =SUM(CoefsMatieres) -> 6
D172: Chinois | E172: 2 | G172: Moyennes
A173: Elève A | B173: 14 | C173: 12 | D173: 13 | E173: =MMULT(Eleves,CoefsMatieres) -> 80 | F173: Totaux | G173: =E173:E176/G171 -> 13.33333333
A174: Elève B | B174: 11 | C174: 17 | D174: 15 | E174: 80 | G174: 13.33333333
A175: Elève C | B175: 16 | C175: 11 | D175: 12 | E175: 83 | G175: 13.83333333
A176: Elève D | B176: 10 | C176: 15 | D176: 14 | E176: 73 | G176: 12.16666667
A178: Attention : le produit matriciel n'est pas commutatif !
E179: PU
E180: 100
E181: 10
E182: 1
A183: Quantités | B183: 1 | C183: 2 | D183: 5 | E183: =MMULT(B183:D183,E180:E182) -> 125 | F183: Prix total
C185: Quantités
C186: 1 | D186: 2 | E186: 5
A187: PU | B187: 100 | C187: =MMULT(B187:B189,C186:E186) -> 100 | D187: 200 | E187: 500
B188: 10 | C188: 10 | D188: 20 | E188: 50
B189: 1 | C189: 1 | D189: 2 | E189: 5
A191: Attention : ne pas confondre produit classique et produit matriciel !
A192: La confusion n'est possible que sur des matrices carrées (sinon : incompatibilité des dimensions !)
B193: Matrice A | D193: Matrice B | F193: Produit classique A.B
B194: 1 | C194: 2 | D194: 5 | E194: 6 | F194: =MatriceA*MatriceB -> 5 | G194: 12
B195: 3 | C195: 4 | D195: 7 | E195: 8 | F195: 21 | G195: 32
D197: =MatriceB -> 5 | E197: 6 | F197: B
B198: A | D198: 7 | E198: 8
B199: =MatriceA -> 1 | C199: 2 | D199: =MMULT(B199:C200,D197:E198) -> 19 | E199: 22 | F199: Produit matriciel A x B
B200: 3 | C200: 4 | D200: 43 | E200: 50
D202: =MatriceA -> 1 | E202: 2 | F202: A
B203: B | D203: 3 | E203: 4
B204: =MatriceB -> 5 | C204: 6 | D204: =MMULT(B204:C205,D202:E203) -> 23 | E204: 34 | F204: Produit matriciel B x A
B205: 7 | C205: 8 | D205: 31 | E205: 46
A207: Résolution d'un système d'équations linéaires : fonction INVERSEMAT (matricielle)
A208: Exemple | B208: X1 | C208: + X2 | D208: + X3 | E208: = 1
B209: X1 | C209: - X2 | D209: + X3 | E209: = 2
B210: X1 | C210: + X2 | D210: - X3 | E210: = 3
A212: Ecriture matricielle | D212: X | E212: X1 ?
A213: Coefs x X = K | E213: X2 ?
E214: X3 ?
A215: Coefs | B215: 1 | C215: 1 | D215: 1 | E215: 1 | F215: K
B216: 1 | C216: -1 | D216: 1 | E216: 2
B217: 1 | C217: 1 | D217: -1 | E217: 3
A219: Résolution : prémultiplier par 1/Coefs | D219: K | E219: =K -> 1
A220: X =(1/Coefs) x K | E220: 2
A221: 1/Coefs = matrice-inverse de Coefs | E221: 3
A222: 1/Coefs | B222: =MINVERSE(Coefs) -> 0 | C222: 0.5 | D222: 0.5 | E222: =MMULT(invCoefs,K) -> 2.5 | F222: X
A223: ou Inv(Coefs) | B223: 0.5 | C223: -0.5 | D223: 0 | E223: -0.5
A224: ou Coefs-1 | B224: 0.5 | C224: 0 | D224: -0.5 | E224: -1
A226: Vérification | C226: Coefs x X - K | D226: =MMULT(Coefs,X)-K -> 0 | E226: doit être égal au vecteur nul
D227: 0 | E227: (aux erreurs d'arrondi près)
D228: 0
A230: Résolution directe sans utiliser les étapes intermédiaires (avec présentation horizontale) :
A231: X | B231: =TRANSPOSE(MMULT(MINVERSE(Coefs),K)) -> 2.5 | C231: -0.5 | D231: -1
A233: Déterminant d'une matrice carrée : fonction DETERMAT (non matricielle)
A234: MC1 | B234: 1 | C234: 2 | F234: déterminant
B235: 3 | C235: 4 | F235: =MDETERM(_MC1) -> -2
A237: MC2 | B237: 1 | C237: 2 | D237: 3 | F237: déterminant
B238: 3 | C238: 1 | D238: 2 | F238: =MDETERM(_MC2) -> 18
B239: 2 | C239: 3 | D239: 1
... 4 more rows

Sheet Frequence
B1: Génération de nombres aléatoires
B2: Bornes | C2: Intervalles | D2: Fréquences | I2: Nombre total de valeurs : | J2: =SUM(D4:D23) -> 1000 | L2: Moyenne : | M2: =AVERAGE(Donnees) -> 51.97455027
B3: 0
B4: 5 | C4: ="["&B3&"-"&B4&"]" -> [0-5] | D4: =FREQUENCY(Donnees,Bornes) -> 42 | E4: =Frequences/NbValeurs -> 0.042
B5: 10 | C5: ="]"&B4&"-"&B5&"]" -> ]5-10] | D5: 38 | E5: 0.038
B6: 15 | C6: ]10-15] | D6: 55 | E6: 0.055
B7: 20 | C7: ]15-20] | D7: 48 | E7: 0.048
B8: 25 | C8: ]20-25] | D8: 48 | E8: 0.048
B9: 30 | C9: ]25-30] | D9: 54 | E9: 0.054
B10: 35 | C10: ]30-35] | D10: 41 | E10: 0.041
B11: 40 | C11: ]35-40] | D11: 39 | E11: 0.039
B12: 45 | C12: ]40-45] | D12: 59 | E12: 0.059
B13: 50 | C13: ]45-50] | D13: 52 | E13: 0.052
B14: 55 | C14: ]50-55] | D14: 53 | E14: 0.053
B15: 60 | C15: ]55-60] | D15: 48 | E15: 0.048
B16: 65 | C16: ]60-65] | D16: 41 | E16: 0.041
B17: 70 | C17: ]65-70] | D17: 53 | E17: 0.053
B18: 75 | C18: ]70-75] | D18: 58 | E18: 0.058
B19: 80 | C19: ]75-80] | D19: 49 | E19: 0.049
B20: 85 | C20: ]80-85] | D20: 54 | E20: 0.054
B21: 90 | C21: ]85-90] | D21: 52 | E21: 0.052
B22: 95 | C22: ]90-95] | D22: 53 | E22: 0.053
B23: 100 | C23: ]95-100] | D23: 63 | E23: 0.063
B25: Taper F9 pour générer de nouvelles valeurs
B27: =100*RAND() -> 92.58716993 | C27: 21.67140478 | D27: 13.05110541 | E27: 37.86914657 | F27: 36.05061164 | G27: 40.76483448 | H27: 48.49758807 | I27: 93.75183141 | J27: 29.40661066 | K27: 86.65794179
B28: 50.31795461 | C28: 88.77453521 | D28: 90.64699786 | E28: 72.96836646 | F28: 19.99223193 | G28: 87.78888998 | H28: 28.23203509 | I28: 58.62430826 | J28: 25.75076078 | K28: 23.81283561
B29: 98.30300049 | C29: 56.7936598 | D29: 9.449863533 | E29: 82.66116264 | F29: 28.79196108 | G29: 88.49879039 | H29: 16.24105151 | I29: 85.19475627 | J29: 59.05986 | K29: 72.77068633
B30: 3.3100113 | C30: 15.8825378 | D30: 98.39488317 | E30: 76.92219584 | F30: 66.10917192 | G30: 71.86678696 | H30: 54.15120791 | I30: 46.96606449 | J30: 2.700412174 | K30: 28.57808679
B31: 66.30024004 | C31: 84.47200405 | D31: 60.093624 | E31: 49.1926766 | F31: 53.97528822 | G31: 81.23212059 | H31: 4.853694115 | I31: 89.94643241 | J31: 42.11398848 | K31: 31.44638901
B32: 89.16824887 | C32: 3.356407904 | D32: 50.84800727 | E32: 28.15397756 | F32: 30.61914407 | G32: 56.55113337 | H32: 18.38046319 | I32: 1.14819229 | J32: 78.95609515 | K32: 70.60685957
B33: 96.34187952 | C33: 18.30630817 | D33: 46.70346407 | E33: 46.5306656 | F33: 86.12505937 | G33: 21.15168007 | H33: 12.72098985 | I33: 17.0828161 | J33: 32.68454679 | K33: 75.02872816
B34: 15.06519827 | C34: 97.66724001 | D34: 28.4960972 | E34: 52.5288733 | F34: 69.64350298 | G34: 82.0183373 | H34: 11.18847967 | I34: 52.47002275 | J34: 93.93719403 | K34: 78.78937616
B35: 8.758670348 | C35: 44.34726377 | D35: 61.47198328 | E35: 37.25151871 | F35: 87.59163119 | G35: 79.49765547 | H35: 64.16897993 | I35: 45.44509053 | J35: 53.74086903 | K35: 32.37557752
B36: 75.74187734 | C36: 8.965434837 | D36: 81.47656509 | E36: 58.51852678 | F36: 34.51360792 | G36: 61.90851974 | H36: 75.52012138 | I36: 80.34692754 | J36: 56.30880014 | K36: 15.96167035
B37: 34.36487574 | C37: 44.81778056 | D37: 97.04751562 | E37: 57.84824552 | F37: 36.23776812 | G37: 1.473069275 | H37: 14.10737358 | I37: 5.961721093 | J37: 29.26303075 | K37: 33.5855561
B38: 12.22125593 | C38: 65.25702419 | D38: 13.04465285 | E38: 54.11157142 | F38: 77.19332102 | G38: 85.88762986 | H38: 33.56289189 | I38: 43.77298259 | J38: 23.38017498 | K38: 72.25928674
B39: 95.04494248 | C39: 68.99026533 | D39: 85.78612372 | E39: 17.51082794 | F39: 8.457743785 | G39: 16.34332675 | H39: 87.13967222 | I39: 66.72661187 | J39: 79.00335605 | K39: 75.09205253
B40: 37.92136087 | C40: 2.064357598 | D40: 95.84300655 | E40: 73.47534804 | F40: 81.57830453 | G40: 65.60697271 | H40: 57.70979601 | I40: 40.4312797 | J40: 79.67973402 | K40: 47.69859757
B41: 81.02735798 | C41: 83.62887482 | D41: 14.01252613 | E41: 10.65232968 | F41: 94.20757352 | G41: 69.13212305 | H41: 92.35592746 | I41: 27.11430431 | J41: 14.07604136 | K41: 22.10352112
B42: 67.56243004 | C42: 67.26015312 | D42: 52.82717572 | E42: 54.41932704 | F42: 35.66314686 | G42: 55.97940919 | H42: 39.54574805 | I42: 49.12591807 | J42: 38.36188149 | K42: 8.744153752
B43: 19.24477768 | C43: 91.68832933 | D43: 6.347230524 | E43: 0.1487790234 | F43: 3.56471955 | G43: 29.97762259 | H43: 0.1581041749 | I43: 3.306606654 | J43: 95.36430926 | K43: 15.12485311
B44: 51.05152957 | C44: 14.39141511 | D44: 67.23252849 | E44: 28.81918 | F44: 37.80801866 | G44: 49.10020326 | H44: 74.78549802 | I44: 41.7497985 | J44: 49.14003091 | K44: 95.27253073
B45: 50.61019349 | C45: 29.26537052 | D45: 74.73957584 | E45: 11.30611059 | F45: 11.31488491 | G45: 3.173152363 | H45: 27.41123833 | I45: 83.28032751 | J45: 68.97417081 | K45: 73.55517064
B46: 40.65410215 | C46: 19.66669578 | D46: 25.85876065 | E46: 67.78271075 | F46: 27.28038568 | G46: 42.3870773 | H46: 99.07458211 | I46: 42.44888924 | J46: 54.62867795 | K46: 30.69873981
B47: 6.838454132 | C47: 20.78612188 | D47: 77.27485557 | E47: 27.08438518 | F47: 32.93185756 | G47: 60.28754146 | H47: 42.19973007 | I47: 94.86386959 | J47: 13.4935593 | K47: 66.92712213
B48: 94.03560376 | C48: 62.0952015 | D48: 81.94687991 | E48: 75.40353245 | F48: 79.06644478 | G48: 24.88324889 | H48: 79.70280583 | I48: 58.0817399 | J48: 63.56687627 | K48: 43.13266783
B49: 48.99338221 | C49: 99.03225348 | D49: 50.30493289 | E49: 55.62851595 | F49: 1.258159288 | G49: 22.07572215 | H49: 85.86522537 | I49: 14.98837734 | J49: 21.74180783 | K49: 64.54340427
B50: 59.91912049 | C50: 76.37809139 | D50: 77.19678193 | E50: 92.1394469 | F50: 49.43444694 | G50: 98.45158336 | H50: 91.43565287 | I50: 23.13748567 | J50: 23.91951584 | K50: 72.21699221
B51: 12.14890884 | C51: 55.19074558 | D51: 26.587472 | E51: 79.36346466 | F51: 88.0682664 | G51: 30.56168668 | H51: 23.4468548 | I51: 78.77027398 | J51: 47.41482666 | K51: 25.48946966
B52: 78.97868237 | C52: 43.61882177 | D52: 94.37136577 | E52: 97.04271644 | F52: 91.01923347 | G52: 92.93730023 | H52: 96.64733816 | I52: 72.47713124 | J52: 6.293597628 | K52: 6.073501788
B53: 84.66464418 | C53: 79.73673439 | D53: 4.60602614 | E53: 55.70494744 | F53: 99.98798805 | G53: 81.7408985 | H53: 75.70085647 | I53: 80.00941877 | J53: 81.3323034 | K53: 15.20015179
B54: 11.86763697 | C54: 68.10011527 | D54: 16.43304789 | E54: 67.23214686 | F54: 13.24495984 | G54: 7.103843242 | H54: 56.76718192 | I54: 22.19797611 | J54: 93.4927725 | K54: 84.76828735
B55: 33.83129113 | C55: 82.04062905 | D55: 76.14153771 | E55: 7.538452187 | F55: 29.7429501 | G55: 83.2238889 | H55: 58.63600819 | I55: 71.59659165 | J55: 6.929586417 | K55: 62.93095234
B56: 90.25156668 | C56: 66.77286969 | D56: 7.455947389 | E56: 57.17247362 | F56: 23.32748411 | G56: 85.79189175 | H56: 31.80097164 | I56: 61.38232314 | J56: 68.46305144 | K56: 27.49738603
B57: 95.3995134 | C57: 55.58202127 | D57: 3.650699509 | E57: 34.58272827 | F57: 78.08015732 | G57: 68.60443717 | H57: 91.91821579 | I57: 30.34510045 | J57: 41.0863666 | K57: 63.75145134
B58: 6.923229355 | C58: 82.46906434 | D58: 40.19699667 | E58: 53.57456375 | F58: 47.86204151 | G58: 19.41898837 | H58: 80.87415331 | I58: 78.65878289 | J58: 49.85644701 | K58: 79.42786735
B59: 61.18722525 | C59: 87.3603778 | D59: 27.55930326 | E59: 24.89283994 | F59: 12.65228294 | G59: 67.20786324 | H59: 24.7049365 | I59: 52.95614486 | J59: 91.09796569 | K59: 45.04684318
B60: 63.81679037 | C60: 28.11647818 | D60: 96.01619328 | E60: 78.45746091 | F60: 21.83105934 | G60: 16.60202126 | H60: 93.3971625 | I60: 58.79852422 | J60: 28.38208874 | K60: 74.55881651
B61: 85.60413513 | C61: 72.47786275 | D61: 56.02688535 | E61: 64.50175688 | F61: 42.20400281 | G61: 47.97031982 | H61: 40.36328147 | I61: 80.72538513 | J61: 75.0843824 | K61: 61.63059987
B62: 45.76720404 | C62: 44.02322746 | D62: 55.77604927 | E62: 49.24242652 | F62: 31.71131157 | G62: 42.88890255 | H62: 67.08065344 | I62: 98.96362911 | J62: 82.26329717 | K62: 25.0231985
B63: 98.29470066 | C63: 39.59563611 | D63: 65.54384575 | E63: 54.88344316 | F63: 11.15114603 | G63: 61.49431996 | H63: 14.42284281 | I63: 5.160851357 | J63: 46.74492337 | K63: 85.06036281
B64: 17.60778951 | C64: 83.01840344 | D64: 73.30648724 | E64: 48.20428791 | F64: 33.53488182 | G64: 82.20050599 | H64: 23.09553506 | I64: 82.33528479 | J64: 61.28035843 | K64: 20.50575957
B65: 19.40457502 | C65: 50.67294476 | D65: 68.6036183 | E65: 77.3413156 | F65: 24.06374897 | G65: 3.336986674 | H65: 23.53936422 | I65: 71.63490767 | J65: 62.35100103 | K65: 27.9693889
B66: 12.50116094 | C66: 16.23643146 | D66: 80.58712947 | E66: 96.7597704 | F66: 54.87388592 | G66: 43.96899953 | H66: 34.50617823 | I66: 49.52409451 | J66: 32.39955868 | K66: 61.01140486
B67: 96.23763657 | C67: 85.21406469 | D67: 13.45245038 | E67: 49.5467055 | F67: 54.86773751 | G67: 59.20168459 | H67: 30.66790274 | I67: 70.86474285 | J67: 50.17195335 | K67: 71.7289411
B68: 0.2064337279 | C68: 74.39621962 | D68: 86.62537194 | E68: 72.92316038 | F68: 43.4694858 | G68: 0.3870088095 | H68: 45.37209546 | I68: 13.53672795 | J68: 86.47010506 | K68: 11.4455868
B69: 16.82461533 | C69: 73.36527012 | D69: 99.82104411 | E69: 14.91263986 | F69: 8.331264259 | G69: 86.20739278 | H69: 52.94032511 | I69: 72.3206321 | J69: 86.65880751 | K69: 75.82406157
B70: 30.47047584 | C70: 54.24196957 | D70: 56.45202 | E70: 57.68772662 | F70: 45.43284919 | G70: 56.66473527 | H70: 50.41308533 | I70: 43.59021521 | J70: 95.2717373 | K70: 70.6522771
B71: 10.21700788 | C71: 81.0254652 | D71: 6.54223741 | E71: 49.02312442 | F71: 21.36851215 | G71: 48.46746029 | H71: 36.22120486 | I71: 14.05750466 | J71: 69.22120945 | K71: 72.41797526
B72: 64.96570149 | C72: 71.27394746 | D72: 23.74340285 | E72: 0.07333879411 | F72: 43.62686401 | G72: 89.63468211 | H72: 5.383495249 | I72: 34.76106937 | J72: 93.98735455 | K72: 50.94739335
B73: 86.10883224 | C73: 33.11948471 | D73: 52.50150413 | E73: 20.30175747 | F73: 83.43687048 | G73: 34.57886356 | H73: 96.74536602 | I73: 71.1102913 | J73: 46.49744775 | K73: 22.93262165
B74: 46.63233806 | C74: 70.06963228 | D74: 19.34303382 | E74: 11.42139524 | F74: 48.66545894 | G74: 99.76328695 | H74: 73.44599559 | I74: 54.64595269 | J74: 19.10904061 | K74: 99.70184345
B75: 75.73260449 | C75: 55.35653801 | D75: 6.502839521 | E75: 94.46386293 | F75: 70.20035086 | G75: 42.9146441 | H75: 25.16279327 | I75: 30.30449663 | J75: 57.91091351 | K75: 97.03273327
B76: 85.37846047 | C76: 41.45469394 | D76: 26.34681721 | E76: 15.01883313 | F76: 6.435839599 | G76: 70.59049107 | H76: 13.89782427 | I76: 74.39244922 | J76: 75.83503762 | K76: 42.0010572
B77: 73.97447164 | C77: 77.07303879 | D77: 52.30381615 | E77: 79.01904537 | F77: 79.17640294 | G77: 70.6169988 | H77: 66.79566066 | I77: 79.83041359 | J77: 94.5041915 | K77: 53.08274514
B78: 23.35224829 | C78: 66.3360725 | D78: 69.89134636 | E78: 25.98187625 | F78: 9.053562305 | G78: 99.15384741 | H78: 69.6623874 | I78: 2.550968584 | J78: 67.23707178 | K78: 31.61473397
B79: 93.03765616 | C79: 76.22109541 | D79: 29.11495239 | E79: 17.74364739 | F79: 7.28524651 | G79: 90.2056778 | H79: 52.8597923 | I79: 10.43771886 | J79: 41.98380741 | K79: 17.57933839
B80: 90.18812562 | C80: 88.74635256 | D80: 50.17022168 | E80: 22.30740776 | F80: 10.22106914 | G80: 4.697303542 | H80: 91.65834169 | I80: 0.8632351053 | J80: 91.63915448 | K80: 65.15020639
B81: 24.47194236 | C81: 28.85213549 | D81: 85.61636026 | E81: 64.45338056 | F81: 23.71863824 | G81: 85.35130961 | H81: 17.34954947 | I81: 67.91270338 | J81: 51.76121291 | K81: 21.89660423
B82: 0.5404885404 | C82: 53.11038836 | D82: 79.95877664 | E82: 92.21361393 | F82: 64.11566376 | G82: 36.83684247 | H82: 54.40192677 | I82: 72.47183774 | J82: 22.11738993 | K82: 53.32374825
B83: 72.64887022 | C83: 63.46636395 | D83: 67.53221091 | E83: 27.2379707 | F83: 29.65663054 | G83: 15.42064729 | H83: 29.16450251 | I83: 12.95099833 | J83: 65.60195512 | K83: 96.40900227
B84: 90.06598908 | C84: 28.04125786 | D84: 19.07744096 | E84: 63.10670945 | F84: 93.23431175 | G84: 11.53226115 | H84: 49.52050694 | I84: 85.51735298 | J84: 41.03086807 | K84: 38.51400088
B85: 85.31992387 | C85: 11.97618397 | D85: 82.9074644 | E85: 12.07485945 | F85: 41.56408885 | G85: 71.80336295 | H85: 28.2950935 | I85: 99.08691848 | J85: 43.72484933 | K85: 53.17196944
B86: 5.464075412 | C86: 74.2348651 | D86: 50.52184834 | E86: 13.5848284 | F86: 37.10017217 | G86: 46.82846036 | H86: 48.75541983 | I86: 28.2951609 | J86: 15.51381334 | K86: 78.7363126
B87: 36.96943633 | C87: 13.99179016 | D87: 35.18992628 | E87: 94.35280869 | F87: 1.950916976 | G87: 41.32569387 | H87: 75.69698848 | I87: 94.18640788 | J87: 69.65731229 | K87: 82.46220922
B88: 85.47446963 | C88: 21.11570299 | D88: 59.11457905 | E88: 9.43919942 | F88: 42.66618462 | G88: 51.50639563 | H88: 17.97649477 | I88: 42.9820829 | J88: 93.8308041 | K88: 48.72419812
B89: 86.98418358 | C89: 69.01937807 | D89: 20.46419434 | E89: 42.54595417 | F89: 74.12340659 | G89: 69.7765903 | H89: 45.59049177 | I89: 80.31882661 | J89: 44.35134844 | K89: 64.87218137
B90: 19.67517082 | C90: 66.86722668 | D90: 49.79010382 | E90: 35.41625046 | F90: 97.89982279 | G90: 11.22513088 | H90: 28.22884323 | I90: 82.25753044 | J90: 99.28739638 | K90: 35.81424677
B91: 20.66370015 | C91: 4.164642494 | D91: 58.06378744 | E91: 83.5613351 | F91: 99.71809352 | G91: 85.19237371 | H91: 81.3058535 | I91: 69.06409603 | J91: 11.23507851 | K91: 60.34944412
B92: 89.86078026 | C92: 90.53116855 | D92: 4.415115335 | E92: 49.59573815 | F92: 92.6191735 | G92: 36.19216437 | H92: 25.25132149 | I92: 40.00222456 | J92: 39.25905636 | K92: 68.5917743
B93: 43.26725042 | C93: 89.03773604 | D93: 49.1903964 | E93: 86.74663515 | F93: 3.204144797 | G93: 34.93563104 | H93: 71.05664223 | I93: 41.9893055 | J93: 80.82069422 | K93: 75.91712001
B94: 67.02605497 | C94: 79.5772175 | D94: 60.11734281 | E94: 31.60732894 | F94: 62.85460749 | G94: 88.8877219 | H94: 38.41812309 | I94: 71.19255808 | J94: 79.15565343 | K94: 47.76489899
B95: 5.889307417 | C95: 15.75090795 | D95: 13.65629004 | E95: 93.32055001 | F95: 81.45107476 | G95: 84.69637117 | H95: 19.58806206 | I95: 58.71922481 | J95: 86.79688514 | K95: 5.348805123
B96: 53.83910051 | C96: 73.66872567 | D96: 43.21789316 | E96: 73.88078697 | F96: 56.95563566 | G96: 29.67734994 | H96: 92.91536682 | I96: 96.91208896 | J96: 25.69772302 | K96: 71.18666482
B97: 78.06774912 | C97: 64.95859312 | D97: 88.784447 | E97: 51.11563579 | F97: 97.14991065 | G97: 84.56885495 | H97: 50.20481603 | I97: 48.92097368 | J97: 77.58204137 | K97: 72.69396468
B98: 38.19835424 | C98: 40.02525858 | D98: 94.64369054 | E98: 80.40801338 | F98: 99.37444497 | G98: 15.55682376 | H98: 97.94444095 | I98: 39.29052791 | J98: 47.25356732 | K98: 26.79698856
B99: 56.98822698 | C99: 14.29699726 | D99: 25.96988459 | E99: 81.11667427 | F99: 18.63446108 | G99: 32.43464937 | H99: 44.57899033 | I99: 63.94312581 | J99: 89.06955448 | K99: 85.41082268
B100: 24.94567041 | C100: 38.09012491 | D100: 34.17703338 | E100: 68.79715122 | F100: 97.52280517 | G100: 47.2116527 | H100: 55.55675359 | I100: 43.56299251 | J100: 87.65405762 | K100: 6.663162021
B101: 99.87739837 | C101: 42.03769728 | D101: 21.02486262 | E101: 11.89096589 | F101: 61.26867553 | G101: 65.091066 | H101: 53.1820504 | I101: 36.96521314 | J101: 84.28235355 | K101: 97.51109185
B102: 2.090626998 | C102: 48.43798838 | D102: 83.68011813 | E102: 9.913997721 | F102: 96.56912767 | G102: 27.87243925 | H102: 57.58126716 | I102: 18.8241814 | J102: 33.25406211 | K102: 51.20619399
B103: 13.54095345 | C103: 99.37362122 | D103: 97.97949264 | E103: 36.17940353 | F103: 85.82674913 | G103: 98.22709816 | H103: 67.41483942 | I103: 18.39178827 | J103: 30.55437136 | K103: 76.47321129
B104: 22.75780344 | C104: 27.58383639 | D104: 20.428731 | E104: 31.17234842 | F104: 14.59767045 | G104: 39.35815114 | H104: 77.83495308 | I104: 6.37697067 | J104: 65.72456299 | K104: 68.77369945
B105: 92.52337413 | C105: 61.69108304 | D105: 28.17248542 | E105: 41.02984248 | F105: 98.92772447 | G105: 82.40405421 | H105: 49.635501 | I105: 15.41229617 | J105: 22.07563982 | K105: 51.00604442
B106: 94.67950919 | C106: 95.32911102 | D106: 10.86907207 | E106: 84.22218132 | F106: 8.248470862 | G106: 98.44645359 | H106: 32.73032225 | I106: 47.45783359 | J106: 56.92445772 | K106: 81.03283304
B107: 13.72432118 | C107: 71.36157767 | D107: 84.83866812 | E107: 4.574828964 | F107: 96.72465903 | G107: 11.60811371 | H107: 92.62052811 | I107: 30.20156457 | J107: 3.669423282 | K107: 6.511406982
B108: 94.09187284 | C108: 43.67419769 | D108: 41.05852437 | E108: 10.6946834 | F108: 52.2925886 | G108: 15.50584814 | H108: 84.86194891 | I108: 60.50587326 | J108: 27.34138691 | K108: 21.25114537
B109: 39.69157055 | C109: 43.22513563 | D109: 88.04525971 | E109: 40.18805134 | F109: 89.61075946 | G109: 13.91212341 | H109: 48.3742088 | I109: 57.20917999 | J109: 1.520209891 | K109: 40.26713533
B110: 42.20210224 | C110: 65.09613376 | D110: 41.31730925 | E110: 24.31989386 | F110: 92.04556226 | G110: 40.02970772 | H110: 71.86199317 | I110: 63.76698696 | J110: 69.61277335 | K110: 26.07386364
B111: 39.60146327 | C111: 7.40093585 | D111: 70.65620745 | E111: 36.88039267 | F111: 41.18121962 | G111: 50.55656993 | H111: 0.7053977669 | I111: 93.24758536 | J111: 51.8690886 | K111: 83.88336913
B112: 31.32988452 | C112: 71.69022415 | D112: 57.57188269 | E112: 5.449703518 | F112: 19.10849089 | G112: 95.43215281 | H112: 86.86117928 | I112: 0.04631458086 | J112: 39.60863253 | K112: 92.28865019
B113: 49.51892064 | C113: 38.47171626 | D113: 32.90901287 | E113: 33.62275908 | F113: 56.38178323 | G113: 25.9398327 | H113: 26.49077367 | I113: 98.84550988 | J113: 49.7872174 | K113: 72.0339458
B114: 23.6113348 | C114: 56.62576906 | D114: 38.27158977 | E114: 44.80856472 | F114: 50.645991 | G114: 1.818851961 | H114: 3.013811626 | I114: 25.76156105 | J114: 32.74252799 | K114: 3.894465186
B115: 48.42712111 | C115: 17.15015622 | D115: 61.84784131 | E115: 21.78113192 | F115: 95.07608308 | G115: 69.5687594 | H115: 26.51883966 | I115: 80.92523168 | J115: 44.44459401 | K115: 83.29310732
B116: 39.14375435 | C116: 95.47028477 | D116: 55.69924504 | E116: 52.79683597 | F116: 11.92399941 | G116: 50.22618561 | H116: 38.71174908 | I116: 39.03269249 | J116: 64.68728777 | K116: 90.17805693
B117: 59.66013584 | C117: 3.134516841 | D117: 18.21366677 | E117: 71.51851114 | F117: 73.80765297 | G117: 13.12018216 | H117: 75.54256457 | I117: 64.6038455 | J117: 39.60279508 | K117: 94.21376395
B118: 97.16982692 | C118: 91.16334645 | D118: 66.4197547 | E118: 88.90352604 | F118: 55.4305526 | G118: 55.6963408 | H118: 92.96928383 | I118: 97.56971487 | J118: 96.57025527 | K118: 13.90762256
B119: 66.99385575 | C119: 95.08719364 | D119: 30.79559334 | E119: 24.45471025 | F119: 5.963132453 | G119: 1.523010691 | H119: 58.84659328 | I119: 18.79612738 | J119: 82.76766142 | K119: 41.96871377
B120: 72.0605118 | C120: 88.4510061 | D120: 9.068630963 | E120: 58.67825582 | F120: 69.09786672 | G120: 98.02070137 | H120: 79.27866376 | I120: 11.82060515 | J120: 24.32075792 | K120: 33.80210459
B121: 16.10297155 | C121: 10.24288953 | D121: 40.38567534 | E121: 0.7453227113 | F121: 66.594999 | G121: 91.58332203 | H121: 73.6955326 | I121: 60.07036429 | J121: 42.05896012 | K121: 57.29788307
B122: 68.63488923 | C122: 15.72618095 | D122: 22.50957254 | E122: 35.25278028 | F122: 7.365969202 | G122: 4.583623037 | H122: 29.47828689 | I122: 74.3114818 | J122: 80.00436655 | K122: 74.12147598
B123: 89.02277925 | C123: 99.8148597 | D123: 99.90151227 | E123: 61.80200544 | F123: 2.07181903 | G123: 96.61314833 | H123: 47.76654406 | I123: 95.99111225 | J123: 5.832294976 | K123: 80.67780874
B124: 40.38245877 | C124: 86.40262963 | D124: 2.668646717 | E124: 18.30601471 | F124: 14.91266663 | G124: 51.28752472 | H124: 25.13637547 | I124: 98.35678614 | J124: 70.83798809 | K124: 71.19941917
B125: 53.9156896 | C125: 22.70321628 | D125: 94.05267518 | E125: 95.5156823 | F125: 45.74742238 | G125: 35.37897516 | H125: 72.74633211 | I125: 25.16108417 | J125: 91.09671135 | K125: 57.93011544
B126: 84.55349109 | C126: 21.4492221 | D126: 47.68093323 | E126: 54.30579231 | F126: 60.5098035 | G126: 57.19663116 | H126: 87.86183335 | I126: 60.34613733 | J126: 92.14742288 | K126: 15.84441428

Sheet ResolutionSysteme
A1: ETUDE DE LA TRAJECTOIRE D'UNE BALLE
A2: Objectif
B3: faire passer une courbe parabolique par 3 points donnés (t1,z1), (t2,z2) et (t3,z3)
A4: Résolution mathématique
B5: La courbe z(t) = a.t2 + b.t + c passe par les 3 points :
C6: z1 = a.t12 + b.t1 + c
C7: z2 = a.t22 + b.t2 + c
C8: z3 = a.t32 + b.t3 + c
B9: Les inconnues étant a, b et c, on a un système linéaire de 3 équations à 3 inconnues :
C10: Z = M.X avec
E11: z1 | H11: t12 | I11: t1 | J11: 1 | L11: a
D12: Z = | E12: z2 | G12: M = | H12: t22 | I12: t2 | J12: 1 | K12: X = | L12: b
E13: z3 | H13: t32 | I13: t3 | J13: 1 | L13: c
B14: Solution : X = Inv(M).Z
A15: Trajectoire d'une balle
D16: T | E16: Z | I16: M | L16: X | N16: vérification : Z-M.X
C17: P1=( | D17: 10 | E17: 6 | F17: ) | H17: =T^2 -> 100 | I17: =T -> 10 | J17: =1 -> 1 | L17: =MMULT(MINVERSE(M),Z) -> -0.02 | N17: =Z-MMULT(M,X) -> 8.881784197e-16
C18: P2=( | D18: 20 | E18: 8 | F18: ) | H18: 400 | I18: 20 | J18: 1 | L18: 0.8 | N18: 1.776356839e-15
C19: P3=( | D19: 30 | E19: 6 | F19: ) | H19: 900 | I19: 30 | J19: 1 | L19: 1.776356839e-15 | N19: -1.776356839e-15
C21: Instant t | D21: 21.66666666 | E21: =INDEX(X,1)*tqcq^2+INDEX(X,2)*tqcq+INDEX(X,3) -> 7.944444445 | F21: Altitude z | H21: z=0 en t = | J21: =(-coef_b-SQRT(coef_b^2-4*coef_a*coef_c))/(2*coef_a) -> 40 | L21: zmax = | M21: =coef_a*t_zmax^2+coef_b*t_zmax+coef_c -> 8 | N21: en t = | O21: =-coef_b/2/coef_a -> 20
A36: Tabulation de la trajectoire parablique
A37: tmin | B37: tmax | C37: tpas | E37: t | F37: z
A38: 0 | B38: =CEILING(MAX(T)+1,10) -> 40 | C38: =(tmax-tmin)/50 -> 0.8 | F38: =z_de_tqcq -> 7.944444445
E39: =tmin -> 0 | F39: 1.776356839e-15
E40: =E39+tpas -> 0.8 | F40: 0.6272
E41: 1.6 | F41: 1.2288
E42: 2.4 | F42: 1.8048
E43: 3.2 | F43: 2.3552
E44: 4 | F44: 2.88
E45: 4.8 | F45: 3.3792
E46: 5.6 | F46: 3.8528
E47: 6.4 | F47: 4.3008
E48: 7.2 | F48: 4.7232
E49: 8 | F49: 5.12
E50: 8.8 | F50: 5.4912
E51: 9.6 | F51: 5.8368
E52: 10.4 | F52: 6.1568
E53: 11.2 | F53: 6.4512
E54: 12 | F54: 6.72
E55: 12.8 | F55: 6.9632
E56: 13.6 | F56: 7.1808
E57: 14.4 | F57: 7.3728
E58: 15.2 | F58: 7.5392
E59: 16 | F59: 7.68
E60: 16.8 | F60: 7.7952
E61: 17.6 | F61: 7.8848
E62: 18.4 | F62: 7.9488
E63: 19.2 | F63: 7.9872
E64: 20 | F64: 8
E65: 20.8 | F65: 7.9872
E66: 21.6 | F66: 7.9488
E67: 22.4 | F67: 7.8848
E68: 23.2 | F68: 7.7952
E69: 24 | F69: 7.68
E70: 24.8 | F70: 7.5392
E71: 25.6 | F71: 7.3728
E72: =E71+tpas -> 26.4 | F72: 7.1808
E73: 27.2 | F73: 6.9632
E74: 28 | F74: 6.72
E75: 28.8 | F75: 6.4512
E76: 29.6 | F76: 6.1568
E77: 30.4 | F77: 5.8368
E78: 31.2 | F78: 5.4912
E79: 32 | F79: 5.12
E80: 32.8 | F80: 4.7232
E81: 33.6 | F81: 4.3008
E82: 34.4 | F82: 3.8528
E83: 35.2 | F83: 3.3792
E84: 36 | F84: 2.88
E85: 36.8 | F85: 2.3552
E86: 37.6 | F86: 1.8048
E87: 38.4 | F87: 1.2288
E88: 39.2 | F88: 0.6272
E89: 40 | F89: 1.243449788e-14
A90: Ajustement linéaire
A91: a | B91: b | C91: r2 | E91: t | F91: z
A92: =LINEST(Z,T) -> 0 | B92: 6.666666667 | C92: =RSQ(Z,T) -> 0 | F92: =A92*tqcq+B92 -> 6.666666667
E93: =tmin -> 0 | F93: 6.666666667
E94: =tmax -> 40 | F94: 6.666666667
